Cogmind - Beta 15 @@@ ROGUE MODE // 2025.07.19 @ 12:10:50 Player: shapeshifter Result: Destroyed by RL-EI8(R) with Subdweller Beam Cannon Performance ------------- Evolutions (0) 0 Regions Visited (2) 400 Robots Destroyed (25) 125 Value Destroyed (537) 537 Prototype IDs (0) 0 Alien Tech Used (0) 0 Bonus (0) 0 TOTAL SCORE: 1062 Bonus ------- None Cogmind --------- Core Integrity 0/250 Matter 290/300 Energy 100/100 System Corruption 0% Temperature Cool (9) Movement Treading (160) Location -10/Subcaves Parts ------- > --- POWER (1) -------- (None) > --- PROPULSION (2) --- Light Treads > --- UTILITY (2) ------ Core Shielding Core Shielding > --- WEAPON (2) ------- (None) > --- INVENTORY (5) ---- Large Storage Unit High-capacity Storage Unit Medium Battery (150) Peak State ------------ > --- POWER ------------ (None) > --- PROPULSION ------- Light Treads Light Treads > --- UTILITY ---------- Large Storage Unit Core Shielding > --- WEAPON ----------- Medium Laser Particle Gun > --- INVENTORY -------- Ion Engine High-capacity Storage Unit Medium Battery Core Shielding [Rating: 7] Favorites ----------- Power Ion Engine Engine Ion Engine Propulsion Light Treads Treads Light Treads Utility Core Shielding Device Seismic Detector Storage Large Storage Unit Protection Core Shielding Weapon Medium Laser Energy Gun Medium Laser Ballistic Gun Assault Rifle Build | -11 -10 -10 ------- Run | Yrd Mat Sub Slots Evolved . | . . . Power . | . . . Propulsion . | . . . Utility . | . . . Weapon . | . . . Parts Attached 13 | 6 6 1 Power 2 | 1 1 . Engine 2 | 1 1 . Core . | . . . Reactor . | . . . Propulsion 3 | 2 1 . Treads 3 | 2 1 . Leg . | . . . Wheel . | . . . Hover . | . . . Flight . | . . . Utility 5 | 1 3 1 Device 1 | 1 . . Storage 2 | . 2 . Processor . | . . . Hackware . | . . . Protection 2 | . 1 1 Artifact . | . . . Weapon 3 | 2 1 . Energy Gun 2 | 1 1 . Energy Cannon . | . . . Ballistic Gun 1 | 1 . . Ballistic Cannon . | . . . Launcher . | . . . Special Weapon . | . . . Impact Weapon . | . . . Slashing Weapon . | . . . Piercing Weapon . | . . . Special Melee Weapon . | . . . Unidentified Prototypes . | . . . Parts Lost 8 | . 6 2 Power 2 | . 1 1 Propulsion 2 | . 2 . Utility 1 | . 1 . Weapon 3 | . 2 1 Highest Loss Streak 3 | . 3 2 To Critical Strikes . | . . . Average Backups 3 | 1 3 3 Power . | . . . Propulsion . | . . . Utility 2 | . 2 3 Weapon . | . . . Tool/Special . | . . . Unused Backups 2 | . . 2 Power . | . . . Propulsion . | . . . Utility 2 | . . 2 Weapon . | . . . Tool/Special . | . . . Average Slot Usage (%) 72 | . 72 71 Engine 7 | . 5 14 Treads 19 | . 20 14 Storage 11 | . 12 7 Protection 10 | . 7 20 Energy Gun 17 | . 18 14 Ballistic Gun 4 | . 5 . Peak Build Rating 7 | 6 7 6 Average Rating 5 | 4 5 5 On Entrance 4 | . 6 6 Naked Turns . | . . . Heaviest Build 29 | 10 29 29 Greatest Support 40 | 40 40 20 Greatest Overweight (x) 1 | 1 1 1 Average Overweight (x) . | . . . Largest Inventory Capacity 15 | 5 15 15 Average Capacity 10 | 5 12 10 Most Carried 7 | 3 7 3 Average Carried 3 | 1 3 3 Final Capacity 15 | 5 15 5 Final Carried 3 | 2 3 3 Class Distribution -------------------- 100% | Mutant Dominant Class ---------------- Mutant | -10/Materials Mutant | -10/Subcaves Resources | -11 -10 -10 ----------- Run | Yrd Mat Sub Matter Collected 435 | 286 149 . Remotely . | . . . Salvage Created 843 | 188 655 . Parts 52 | 13 39 . Haulers Intercepted 1 | . 1 . Recyclers Shooed 1 | 1 . . Parts Field Recycled . | . . . Retrieved Matter . | . . . Parts Self-Destructed 7 | . . 7 Prevented . | . . . Kills | -11 -10 -10 ------- Run | Yrd Mat Sub Combat Hostiles Destroyed 17 | . 17 . Guns 16 | . 16 . Classes Destroyed 7 | 3 4 . Worker 1 | 1 . . Tunneler 4 | 4 . . Hauler 1 | . 1 . Recycler 1 | 1 . . Watcher 1 | . 1 . Swarmer 5 | . 5 . Grunt 12 | . 12 . Best Kill Streak 5 | 2 5 . Combat Bots Only 5 | . 5 . Max Kills in Single Turn 2 | 1 2 . Gunslinging 1 | . 1 . Exploded . | . . . Melee . | . . . Uniques/NPCs Destroyed . | . . . Combat | -11 -10 -10 -------- Run | Yrd Mat Sub Hostile Shots Fired 124 | . 99 25 Missed 35 | . 22 13 Hits 89 | . 77 12 Projectile 89 | . 77 12 Critical Strikes 1 | . 1 . Damage Taken 1055 | . 812 243 Core 253 | . 197 56 Absorbed by Shields . | . . . Redirected to Shielding 18 | . 11 7 Core Remaining (%) 100 | 100 . . Volleys Fired 76 | 12 64 . Largest 2 | 2 2 . Hottest 115 | 70 115 . Shots Fired 142 | 24 118 . Gun 142 | 24 118 . Cannon . | . . . Launcher . | . . . Special . | . . . Kinetic 50 | 12 38 . Thermal 92 | 12 80 . Explosive . | . . . Electromagnetic . | . . . Robot Hit Streak 20 | 5 20 . Robot Miss Streak 3 | 2 3 . Penetration Max . | . . . Secondary Targets 2 | . 2 . Max Gunslinging Chain 1 | . 1 . Shots Hit Robots 102 | 15 87 . Core Hits 38 | 7 31 . Critical Kills . | . . . Critical Parts Destroyed . | . . . Critical Strikes 5 | . 5 . Burn 5 | . 5 . Melee Attacks . | . . . Impact . | . . . Slashing . | . . . Piercing . | . . . Sneak Attacks . | . . . Combat Hostiles . | . . . Follow-up Attacks . | . . . Damage Inflicted 1383 | 182 1201 . Guns 1375 | 182 1193 . Cannons . | . . . Explosions . | . . . Melee . | . . . Ramming 8 | . 8 . Kinetic 415 | 72 343 . Thermal 960 | 110 850 . Explosive . | . . . Electromagnetic . | . . . Impact . | . . . Slashing . | . . . Piercing . | . . . Highest Corruption . | . . . Average Corruption . | . . . Corruption Purged . | . . . Corruption Blocked . | . . . Overload Shots . | . . . Overflow Damage . | . . . Projectiles . | . . . Explosions . | . . . Melee . | . . . Knockbacks . | . . . Impact . | . . . Kinetic . | . . . Secondary . | . . . Self-Inflicted Damage . | . . . Shots . | . . . Rammed 1 | . 1 . Targets Rammed 1 | . 1 . Kicked . | . . . Crushed . | . . . Highest Temperature 291 | 45 291 . Average Temperature 50 | 18 55 . Received Heat Transfer 438 | . 378 60 Siege Activations . | . . . Martial Activations . | . . . Shielding Activations . | . . . Robots Disrupted . | . . . Combat Hostiles . | . . . Robots Corrupted . | . . . Combat Hostiles . | . . . Parts Fried . | . . . Impact Corruptions . | . . . Robots Melted 1 | . 1 . Combat Hostiles 1 | . 1 . Parts Melted 6 | 1 5 . Heat Transferred 2997 | 333 2664 . Parts Sabotaged . | . . . Parts Stolen . | . . . Parts Stripped . | . . . Power Chain Reactions . | . . . Alert | -11 -10 -10 ------- Run | Yrd Mat Sub Maximum Alert Level . | . . . Low Security (%) 100 | 100 100 . Level 1 . | . . . Level 2 . | . . . Level 3 . | . . . Level 4 . | . . . Level 5 . | . . . High Security . | . . . Max Security . | . . . Peak Influence 181 | 10 181 . Initial . | . . . Average 65 | 1 81 . Influence Increases 509 | 30 479 . Destroy 0b10 Robot/C 340 | . 340 . Destroy 0b10 Robot/NC 40 | 30 10 . Destroy Leader 54 | . 54 . Successful Hack 28 | . 28 . Destroy Structure 2 | . 2 . Lose Combat Pursuer 45 | . 45 . Influence Decreases 509 | 30 396 83 Entered New Map 41 | . . 41 Time Decay 418 | 30 346 42 Lost Part 50 | . 50 . Squads Dispatched 3 | . 3 . Investigation 2 | . 2 . Extermination . | . . . Reinforcement 1 | . 1 . Assault . | . . . Garrison . | . . . Intercept . | . . . Searches Triggered . | . . . Construction Impeded . | . . . Haulers Reinforced . | . . . Active Scanning Responses . | . . . Cargo Convoy Interrupts . | . . . Stealth | -11 -10 -10 --------- Run | Yrd Mat Sub Distress Signals 1 | . 1 . Communications Jammed . | . . . Distress Signals . | . . . Times Spotted 33 | . 27 6 Peak Tracking Total 5 | . 5 5 Tactical Retreats 3 | . 2 1 Traps | -11 -10 -10 ------- Run | Yrd Mat Sub Traps Triggered 2 | . 2 . Indirectly . | . . . Trap Hack Attempts . | . . . Triggered . | . . . Disarmed . | . . . Reprogrammed . | . . . Reused . | . . . Traps Extracted . | . . . Installed . | . . . Triggered . | . . . Machines | -11 -10 -10 ---------- Run | Yrd Mat Sub Machines Disabled . | . . . Max in Single Turn . | . . . Machines Repaired . | . . . Machines Dismantled . | . . . Machines Sabotaged . | . . . Overloaded Fab Kills . | . . . Hacking | -11 -10 -10 --------- Run | Yrd Mat Sub Machines Accessed 3 | . 3 . Terminals 3 | . 3 . Fabricators . | . . . Repair Stations . | . . . Recycling Units . | . . . Scanalyzers . | . . . Garrison Access . | . . . Total Hacks 8 | . 8 . Successful 4 | . 4 . Failed 4 | . 4 . Catastrophic 1 | . 1 . Database Lockouts . | . . . Manual . | . . . Terminals 8 | . 8 . Fabricators . | . . . Repair Stations . | . . . Recycling Units . | . . . Scanalyzers . | . . . Garrison Access . | . . . Terminal Hacks 4 | . 4 . Emergency Access Points 1 | . 1 . Terminal Index 1 | . 1 . Dispatch Records 1 | . 1 . Hauler Manifests 1 | . 1 . Fabricator Hacks . | . . . Repair Station Hacks . | . . . Recycling Unit Hacks . | . . . Scanalyzer . | . . . Garrison Access Hacks . | . . . Unauthorized Hacks . | . . . Terminals . | . . . Fabricators . | . . . Repair Stations . | . . . Recycling Units . | . . . Scanalyzers . | . . . Garrison Access . | . . . Data Cores Recovered . | . . . Used . | . . . Hacking Detections 2 | . 2 . Full Trace Events 1 | . 1 . Feedback Events . | . . . Feedback Blocked . | . . . Robot Schematics Acquired . | . . . Robots Built . | . . . Authchips . | . . . Time . | . . . Total Robot Build Rating . | . . . Part Schematics Acquired . | . . . Parts Built . | . . . Authchips . | . . . Time . | . . . Total Part Build Rating . | . . . Parts Repaired . | . . . Time . | . . . Parts Recycled . | . . . Recycled Matter . | . . . Retrieved Matter . | . . . Retrieved Components . | . . . Parts Scanalyzed . | . . . Part Schematics Acquired . | . . . Parts Damaged . | . . . Bothacking | -11 -10 -10 ------------ Run | Yrd Mat Sub Used RIF Installer . | . . . Robots Hacked . | . . . Non-combat . | . . . Combat . | . . . Robot Hacks Applied . | . . . Relay Couplers Released . | . . . Fabnet Peak Effective % . | . . . Robots Rewired . | . . . Allies Hacked . | . . . Hacks Repelled . | . . . Allies | -11 -10 -10 -------- Run | Yrd Mat Sub Total Allies . | . . . Largest Group . | . . . Highest-Rated Group . | . . . Highest-Rated Ally . | . . . Total Orders . | . . . Ally Attacks . | . . . Total Damage . | . . . Kills . | . . . Allies Corrupted . | . . . Allies Melted . | . . . Intel | -11 -10 -10 ------- Run | Yrd Mat Sub Active Infowar (turns) 59 | 11 48 . Seismic 59 | 11 48 . Robot Analysis Total . | . . . Derelict Logs Recovered . | . . . Drone Launches . | . . . Drone Recoveries . | . . . Exploration | -11 -10 -10 ------------- Run | Yrd Mat Sub Turns Passed 1335 | 218 913 204 Spaces Moved 536 | 113 318 105 Core 13 | 13 . . Treads 523 | 100 318 105 Legs . | . . . Wheels . | . . . Hover . | . . . Flight . | . . . Fastest Speed 50 | 50 160 160 Average Speed 187 | 149 198 192 Slowest Speed 240 | 160 240 240 Overloaded Moves . | . . . Propulsion Burnouts . | . . . Robots Hopped . | . . . Potential Cave-ins . | . . . Cave-ins Triggered . | . . . Exploration Rate (%) 25 | 5 62 8 Regions Visited 2 Branch Regions 1 Pre-discovered Areas . | . . . Known Exits Taken . | . . . Unknown Exits Taken 2 | 1 1 . Scrap Searched . | . . . Spaces Dug . | . . . Terrain Destroyed . | . . . Melee . | . . . Projectile . | . . . AOE . | . . . Terrain Rammed . | . . . Walls Destroyed . | . . . Machines Disabled . | . . . Actions | -11 -10 -10 --------- Run | Yrd Mat Sub Total 726 | 138 481 107 Wait 85 | . 85 . Move 534 | 112 317 105 Hop . | . . . Pick Up 15 | 8 7 . Fast Attach . | . . . Attach 12 | 6 5 1 Detach 1 | . . 1 Swap 1 | . 1 . Drop 1 | . 1 . Fire 76 | 12 64 . Melee . | . . . Ram . | . . . Kick . | . . . Crush 1 | . 1 . Escape Stasis . | . . . Rewire . | . . . Trap . | . . . Miscellaneous . | . . . Route ------- -11/Scrapyard -10/Materials (discovered 2 exits: [*Min] / [*Sub]) -10/Subcaves History --------- Turn | Location | Event 23 | -11/Scrapyard | Discovered new exit (range 14) 219 | -11/Scrapyard | Entered Materials 322 | -10/Materials | Build established: Mutant 449 | -10/Materials | Discovered new exit (range 5) 611 | -10/Materials | Core integrity fell below 50% 666 | -10/Materials | Lost 3 parts (2n1w) 1113 | -10/Materials | Discovered new exit (range 9) 1132 | -10/Materials | Entered Subcaves 1133 | -10/Subcaves | Approached by a straggling Scientist 1252 | -10/Subcaves | Core integrity fell below 20% 1336 | -10/Subcaves | Destroyed by RL-EI8(R) with Subdweller Beam Cannon Last Messages --------------- 01119_ T-07 Excavator is excavating. 01129_ U-05 Engineer lays Concrete. 01131_ U-05 Engineer builds a Wall. 01132_ U-05 Engineer lays Concrete. 01132_ T-07 Excavator is excavating. LOCATION=UNKNOWN AMBIENT_HEAT=-10 GOAL=ESCAPE 01133_ GL-044(c): "Thank the algorithms! I was beginning to lose hope I'd never make it past all the Subs lurking out here." 01139_ GL-044(c): "Hey, let me tag along and I can get us both out of this nasty situation. At least I think I can... The group I got separated from was talking about a shortcut back to the UFD." GL-044(c): "I think it's somewhere southwest of here" 01331_ Particle Gun destroyed. 01336_ Ion Engine destroyed. Map ----- +----------------------------------------------------+ | ???# #???## #???##?#???????????????? | | ??# ######??## #####?? ???????????????? | | ??# #???????# ## ##? ##??????????????? | | ??## #???????### #? #??????????????? | | ???## #####?????????## ## #??????????????? | | ????##???????????????###### #??????????????? | | ??????????????????????????# #??????????????? | | ??????????????????????????## ##??????????????? | | ?????????????????????????### ##???????????????? | | ?????????????????????????# #????????????????? | | ?????????????????????????# ""##????????????????? | | ????????????????????????## ""#?????????????????? | | ????????????????????????# ""##?????????????????? | | ????????????????????????## ##??????????????????? | | ????????????????????????## #???????????????????? | | ????????????????????????# ###?###?????????????? | | ????????????????????????## ##" #?????????????? | | ?????????????????????????# "" #?????????????? | | ?????????????????????????## "" #?????????????? | | ??????????????????????????## "" ##?????????????? | | ???????????????????????###### "##??????????????? | | ??????????????????????## "## " #???????????????? | | ??????????????????????# ## ##??????????????? | | ???????????????#??????#" "##" #??????????????? | | ?????????????# # #### " ### ##??????????????? | | ?????????? @ ;# #???????????????? | | ?????????? R # ##??????????????? | | ???????????# # # #??????????????? | | ??????????????????## #?????????????? | | ???????????????????## ## #?????????????? | | ????????????????????## ##### #?????????????? | | ?????????????????????###????## #?????????????? | | ?????????????????????????????? #?????????????? | | ?????????????????????????????? #?????????????? | | ?????????????????????????????? #?????????????? | | ?????????????????????????????? #?????????????? | | ?????????????????????????????? ##?????????????? | | ?????????????????????????????? #??????????????? | | ??????????????????????????????###??????????????? | | ???????????????????????????????????????????????? | | ???????????????????????????????????????????????? | | ???????????????????????????????????????????????? | | ???????????????????????????????????????????????? | | ???????????????????????????????????????????????? | | ???????????????????????????????????????????????? | | ???????????????????????????????????????????????? | | ???????????????????????????????????????????????? | | ???????????????????????????????????????????????? | | ???????????????????????????????????????????????? | | ???????????????????????????????????????????????? | +----------------------------------------------------+ Best States ------------- Heat Dissipation 25 Energy Generation 10 Energy Capacity 250 Matter Stores 300 Matter Capacity 300 Sight Range 16 Terrain Scan Density 10 Core Shielding 20 Evasion (%) 40 Recoil Reduction 2 Item Schematics ----------------- None Robot Schematics ------------------ None Fabricated ------------ Nothing Repaired ---------- Nothing Alien Tech Used ----------------- None Achievements -------------- None Challenges ------------ None Game ------ Seed InterceptMediumTerminator Manual? 0 Play Time 00:09:29 Cumulative 15.2 hours Start 2025.07.19 @ 12:02:25 End 2025.07.19 @ 12:10:50 Sessions 1 Manual Loads 0 Difficulty Rogue Special Mode None Game No. 46 Rogue 46 Adventurer 0 Explorer 0 Win Type - Total 0 Types 0/0/0/0/0/0/0/0/0/0 Lore% 17 Gallery% 18 Achievement% 14 Wizard Run 0 Options --------- Layout 1 ASCII 0 Keyboard 0 Movement Mouse Keybinds 0 Fullscreen 1 Font 24/Smallcaps Map View 50x40 Zoom Use 0% Tactical HUD 1 Map Filters NONE Filters NONE Steam 1 RUN: eb84facc-369f-45be-a3fe-f06befcdb447